[Event "Titled Tuesday Blitz February 28 Late 2023"]
[White "Sarana, Alexey"]
[Black "Ibarra Jerez, Jose Carlos"]
[WhiteFideId "24133795"]
[BlackFideId "2226332"]
[WhiteElo "2717"]
[BlackElo "2638"]
[Result "1-0"]
[Round "10"]
[TimeControl "180+2"]
[Date "2023.02.28"]
[WhiteClock "0:00:26"]
[BlackClock "0:00:02"]

1. c4 {[%clk 0:03:00]}  e6 {[%clk 0:02:57]} 2. Nf3 {[%clk 0:03:00]}  d5 {[%clk 0:02:57]} 3. d4 {[%clk 0:03:00]}  a6 {[%clk 0:02:56]} 4. cxd5 {[%clk 0:02:49]}  exd5 {[%clk 0:02:57]} 5. Nc3 {[%clk 0:02:49]}  Nf6 {[%clk 0:02:56]} 6. Bg5 {[%clk 0:02:49]}  Be6 {[%clk 0:02:57]} 7. e3 {[%clk 0:02:49]}  Nbd7 {[%clk 0:02:56]} 8. Bd3 {[%clk 0:02:50]}  Bd6 {[%clk 0:02:55]} 9. Nd2 {[%clk 0:02:48]}  c5 {[%clk 0:02:50]} 10. dxc5 {[%clk 0:02:38]}  Nxc5 {[%clk 0:02:49]} 11. Nb3 {[%clk 0:02:38]}  Nxd3+ {[%clk 0:02:45]} 12. Qxd3 {[%clk 0:02:38]}  O-O {[%clk 0:02:46]} 13. Nd4 {[%clk 0:02:37]}  Rc8 {[%clk 0:02:40]} 14. h3 {[%clk 0:02:34]}  h6 {[%clk 0:02:34]} 15. Bh4 {[%clk 0:02:34]}  Be5 {[%clk 0:01:47]} 16. O-O {[%clk 0:02:33]}  Qd6 {[%clk 0:01:41]} 17. Nce2 {[%clk 0:02:28]}  Ne4 {[%clk 0:01:37]} 18. f3 {[%clk 0:02:27]}  Nc5 {[%clk 0:01:36]} 19. Qa3 {[%clk 0:02:24]}  Nd7 {[%clk 0:01:30]} 20. Qd3 {[%clk 0:02:00]}  Nc5 {[%clk 0:01:19]} 21. Qd2 {[%clk 0:02:00]}  Qb6 {[%clk 0:01:08]} 22. Rac1 {[%clk 0:01:58]}  Rc7 {[%clk 0:01:06]} 23. Rc3 {[%clk 0:01:40]}  Rfc8 {[%clk 0:01:04]} 24. Rfc1 {[%clk 0:01:39]}  Na4 {[%clk 0:01:01]} 25. Rb3 {[%clk 0:01:24]}  Rxc1+ {[%clk 0:00:59]} 26. Nxc1 {[%clk 0:01:25]}  Qc7 {[%clk 0:00:58]} 27. Nd3 {[%clk 0:01:25]}  Bxd4 {[%clk 0:00:47]} 28. exd4 {[%clk 0:01:25]}  Bf5 {[%clk 0:00:48]} 29. Rb4 {[%clk 0:00:55]}  Qc2 {[%clk 0:00:36]} 30. Qxc2 {[%clk 0:00:40]}  Rxc2 {[%clk 0:00:37]} 31. Nc5 {[%clk 0:00:40]}  Nxc5 {[%clk 0:00:29]} 32. dxc5 {[%clk 0:00:40]}  Rc4 {[%clk 0:00:16]} 33. Rxb7 {[%clk 0:00:31]}  Rxh4 {[%clk 0:00:14]} 34. g4 {[%clk 0:00:31]}  Be6 {[%clk 0:00:11]} 35. c6 {[%clk 0:00:27]}  h5 {[%clk 0:00:09]} 36. Re7 {[%clk 0:00:24]}  hxg4 {[%clk 0:00:03]} 37. Rxe6 {[%clk 0:00:24]}  fxe6 {[%clk 0:00:03]} 38. c7 {[%clk 0:00:24]}  gxh3 {[%clk 0:00:03]} 39. c8=Q+ {[%clk 0:00:25]}  Kf7 {[%clk 0:00:03]} 40. Qd7+ {[%clk 0:00:25]}  Kf8 {[%clk 0:00:02]} 41. Qd8+ {[%clk 0:00:26]} 1-0


[Site "https://www.chess.com"]

[Event "Titled Tuesday Blitz February 28 Late 2023"]
[White "Sjugirov, Sanan"]
[Black "Bernadskiy, Vitaliy"]
[WhiteFideId "4189302"]
[BlackFideId "14100371"]
[WhiteElo "2569"]
[BlackElo "2488"]
[Result "1-0"]
[Round "10"]
[TimeControl "180+2"]
[Date "2023.02.28"]
[WhiteClock "0:00:13"]
[BlackClock "0:00:03"]

1. Nf3 {[%clk 0:03:00]}  g6 {[%clk 0:02:55]} 2. e4 {[%clk 0:03:00]}  b6 {[%clk 0:02:53]} 3. d4 {[%clk 0:03:00]}  Bb7 {[%clk 0:02:53]} 4. Bd3 {[%clk 0:03:01]}  Bg7 {[%clk 0:02:53]} 5. O-O {[%clk 0:03:01]}  d6 {[%clk 0:02:53]} 6. Re1 {[%clk 0:02:59]}  Nd7 {[%clk 0:02:53]} 7. Nc3 {[%clk 0:02:57]}  e5 {[%clk 0:02:51]} 8. d5 {[%clk 0:02:55]}  Ne7 {[%clk 0:02:50]} 9. a4 {[%clk 0:02:54]}  a5 {[%clk 0:02:48]} 10. Ne2 {[%clk 0:02:21]}  h5 {[%clk 0:02:43]} 11. h4 {[%clk 0:02:07]}  Nc5 {[%clk 0:02:41]} 12. Ng3 {[%clk 0:02:06]}  Bc8 {[%clk 0:02:38]} 13. Bb5+ {[%clk 0:02:06]}  Kf8 {[%clk 0:02:38]} 14. c3 {[%clk 0:01:53]}  Bg4 {[%clk 0:02:37]} 15. b4 {[%clk 0:01:53]}  Nd7 {[%clk 0:02:33]} 16. Qd3 {[%clk 0:01:52]}  Bf6 {[%clk 0:02:27]} 17. Ng5 {[%clk 0:01:50]}  Nb8 {[%clk 0:02:18]} 18. Bd2 {[%clk 0:01:45]}  Kg7 {[%clk 0:02:12]} 19. bxa5 {[%clk 0:01:38]}  Rxa5 {[%clk 0:01:59]} 20. c4 {[%clk 0:01:38]}  Ra8 {[%clk 0:01:59]} 21. a5 {[%clk 0:01:36]}  bxa5 {[%clk 0:01:52]} 22. Bxa5 {[%clk 0:01:37]}  Nd7 {[%clk 0:01:39]} 23. Qe3 {[%clk 0:01:26]}  Bxg5 {[%clk 0:01:07]} 24. Qxg5 {[%clk 0:01:24]}  Rxa5 {[%clk 0:00:55]} 25. Rxa5 {[%clk 0:01:23]}  c6 {[%clk 0:00:55]} 26. Ra7 {[%clk 0:01:06]}  cxb5 {[%clk 0:00:54]} 27. cxb5 {[%clk 0:01:07]}  Nf6 {[%clk 0:00:51]} 28. Rc1 {[%clk 0:01:00]}  Nc8 {[%clk 0:00:48]} 29. Rb7 {[%clk 0:00:56]}  Qa5 {[%clk 0:00:43]} 30. Rcc7 {[%clk 0:00:50]}  Rf8 {[%clk 0:00:43]} 31. f3 {[%clk 0:00:45]}  Qe1+ {[%clk 0:00:30]} 32. Kh2 {[%clk 0:00:45]}  Qf2 {[%clk 0:00:18]} 33. fxg4 {[%clk 0:00:24]}  Nxg4+ {[%clk 0:00:19]} 34. Kh3 {[%clk 0:00:25]}  Qg1 {[%clk 0:00:19]} 35. Nxh5+ {[%clk 0:00:21]}  Kh8 {[%clk 0:00:17]} 36. Qxg4 {[%clk 0:00:17]}  Qh1+ {[%clk 0:00:15]} 37. Kg3 {[%clk 0:00:17]}  Nb6 {[%clk 0:00:03]} 38. Rxf7 {[%clk 0:00:13]} 1-0


[Site "https://www.chess.com"]

[Event "Titled Tuesday Blitz February 28 Late 2023"]
[White "Vasquez Schroeder, Rodrigo"]
[Black "Mendonca, Leon Luke"]
[WhiteFideId "3400042"]
[BlackFideId "35028561"]
[WhiteElo "2600"]
[BlackElo "2464"]
[Result "1-0"]
[Round "10"]
[TimeControl "180+2"]
[Date "2023.02.28"]
[WhiteClock "0:00:37"]
[BlackClock "0:00:33"]

1. d4 {[%clk 0:03:00]}  g6 {[%clk 0:02:56]} 2. Nf3 {[%clk 0:02:59]}  Bg7 {[%clk 0:02:56]} 3. c4 {[%clk 0:02:57]}  Nf6 {[%clk 0:02:49]} 4. g3 {[%clk 0:02:56]}  c5 {[%clk 0:02:47]} 5. Bg2 {[%clk 0:02:56]}  cxd4 {[%clk 0:02:45]} 6. Nxd4 {[%clk 0:02:56]}  O-O {[%clk 0:02:46]} 7. Nc3 {[%clk 0:02:50]}  Nc6 {[%clk 0:02:45]} 8. Nc2 {[%clk 0:02:49]}  d6 {[%clk 0:02:45]} 9. O-O {[%clk 0:02:47]}  Be6 {[%clk 0:02:45]} 10. Ne3 {[%clk 0:02:46]}  Qa5 {[%clk 0:02:40]} 11. Ned5 {[%clk 0:02:42]}  Bxd5 {[%clk 0:02:35]} 12. cxd5 {[%clk 0:02:40]}  Ne5 {[%clk 0:02:35]} 13. Qb3 {[%clk 0:02:34]}  Nfd7 {[%clk 0:02:27]} 14. h3 {[%clk 0:02:15]}  Rfc8 {[%clk 0:02:21]} 15. Kh2 {[%clk 0:02:11]}  Nc5 {[%clk 0:02:19]} 16. Qd1 {[%clk 0:02:06]}  b5 {[%clk 0:02:19]} 17. a3 {[%clk 0:01:57]}  b4 {[%clk 0:02:12]} 18. Na2 {[%clk 0:01:56]}  bxa3 {[%clk 0:02:07]} 19. b4 {[%clk 0:01:55]}  Qb5 {[%clk 0:01:57]} 20. bxc5 {[%clk 0:01:48]}  Nc4 {[%clk 0:01:56]} 21. Bg5 {[%clk 0:01:37]}  Rxc5 {[%clk 0:01:56]} 22. Rb1 {[%clk 0:01:34]}  Nb2 {[%clk 0:01:56]} 23. Qd2 {[%clk 0:01:31]}  Qb3 {[%clk 0:01:54]} 24. Nc1 {[%clk 0:01:31]}  Qa4 {[%clk 0:01:34]} 25. Ra1 {[%clk 0:01:16]}  Rc2 {[%clk 0:01:28]} 26. Qf4 {[%clk 0:01:10]}  Qxf4 {[%clk 0:01:26]} 27. Bxf4 {[%clk 0:01:10]}  Nc4 {[%clk 0:01:17]} 28. Ra2 {[%clk 0:01:10]}  Rxa2 {[%clk 0:00:56]} 29. Nxa2 {[%clk 0:01:10]}  Rb8 {[%clk 0:00:57]} 30. Be4 {[%clk 0:01:00]}  Rb2 {[%clk 0:00:54]} 31. Rb1 {[%clk 0:00:55]}  Bd4 {[%clk 0:00:47]} 32. Bd3 {[%clk 0:00:50]}  Rxa2 {[%clk 0:00:35]} 33. Bxc4 {[%clk 0:00:48]}  Rc2 {[%clk 0:00:34]} 34. Bh6 {[%clk 0:00:45]}  f5 {[%clk 0:00:33]} 35. Rb8+ {[%clk 0:00:37]}  Kf7 {[%clk 0:00:33]} 36. Rf8# {[%clk 0:00:37]} 1-0


[Site "https://www.chess.com"]

[Event "Titled Tuesday Blitz February 28 Late 2023"]
[White "Moroni, Luca Jr"]
[Black "Matinian, Nikita"]
[WhiteFideId "865834"]
[BlackFideId "24129100"]
[WhiteElo "2569"]
[BlackElo "2422"]
[Result "1-0"]
[Round "10"]
[TimeControl "180+2"]
[Date "2023.02.28"]
[WhiteClock "0:01:16"]
[BlackClock "0:00:16"]

1. b3 {[%clk 0:03:00]}  Nf6 {[%clk 0:02:56]} 2. Bb2 {[%clk 0:03:01]}  g6 {[%clk 0:02:56]} 3. g3 {[%clk 0:03:00]}  Bg7 {[%clk 0:02:56]} 4. Bg2 {[%clk 0:03:01]}  d6 {[%clk 0:02:55]} 5. d4 {[%clk 0:03:02]}  c5 {[%clk 0:02:54]} 6. Nf3 {[%clk 0:02:59]}  Qa5+ {[%clk 0:02:42]} 7. Nbd2 {[%clk 0:02:56]}  Ne4 {[%clk 0:02:38]} 8. O-O {[%clk 0:02:53]}  Nxd2 {[%clk 0:02:36]} 9. Nxd2 {[%clk 0:02:53]}  cxd4 {[%clk 0:02:25]} 10. Nc4 {[%clk 0:02:52]}  Qc5 {[%clk 0:02:16]} 11. e3 {[%clk 0:02:53]}  Nc6 {[%clk 0:02:15]} 12. Bxc6+ {[%clk 0:02:42]}  Qxc6 {[%clk 0:02:13]} 13. exd4 {[%clk 0:02:42]}  d5 {[%clk 0:01:49]} 14. Ne5 {[%clk 0:02:38]}  Qc7 {[%clk 0:01:37]} 15. Re1 {[%clk 0:02:37]}  Bf5 {[%clk 0:01:31]} 16. c4 {[%clk 0:02:36]}  dxc4 {[%clk 0:01:30]} 17. bxc4 {[%clk 0:02:37]}  O-O {[%clk 0:01:21]} 18. Qe2 {[%clk 0:02:35]}  Rac8 {[%clk 0:01:16]} 19. Rac1 {[%clk 0:02:34]}  Rfd8 {[%clk 0:01:14]} 20. d5 {[%clk 0:02:33]}  Qa5 {[%clk 0:01:09]} 21. Bc3 {[%clk 0:02:31]}  Qa4 {[%clk 0:01:09]} 22. g4 {[%clk 0:02:28]}  Bd7 {[%clk 0:01:04]} 23. h3 {[%clk 0:02:07]}  Be8 {[%clk 0:01:03]} 24. Bd4 {[%clk 0:02:03]}  b5 {[%clk 0:01:00]} 25. Nf3 {[%clk 0:01:53]}  bxc4 {[%clk 0:00:37]} 26. Bxg7 {[%clk 0:01:43]}  Kxg7 {[%clk 0:00:38]} 27. Qe5+ {[%clk 0:01:36]}  Kg8 {[%clk 0:00:37]} 28. Qxe7 {[%clk 0:01:36]}  Rxd5 {[%clk 0:00:34]} 29. Qh4 {[%clk 0:01:25]}  c3 {[%clk 0:00:18]} 30. Ng5 {[%clk 0:01:24]}  h5 {[%clk 0:00:16]} 31. Ne4 {[%clk 0:01:21]}  Rc6 {[%clk 0:00:16]} 32. Nf6+ {[%clk 0:01:16]} 1-0


[Site "https://www.chess.com"]

[Event "Titled Tuesday Blitz February 28 Late 2023"]
[White "Adewumi, Tanitoluwa"]
[Black "Fier, Alexandr"]
[WhiteFideId "30966396"]
[BlackFideId "2107139"]
[WhiteElo "2682"]
[BlackElo "2610"]
[Result "1-0"]
[Round "10"]
[TimeControl "180+2"]
[Date "2023.02.28"]
[WhiteClock "0:00:08"]
[BlackClock "0:02:01"]

1. e4 {[%clk 0:03:00]}  Nf6 {[%clk 0:02:57]} 2. e5 {[%clk 0:03:00]}  Nd5 {[%clk 0:02:58]} 3. d4 {[%clk 0:02:58]}  d6 {[%clk 0:02:58]} 4. c4 {[%clk 0:02:59]}  Nb6 {[%clk 0:02:59]} 5. f4 {[%clk 0:02:59]}  dxe5 {[%clk 0:02:55]} 6. fxe5 {[%clk 0:03:00]}  Nc6 {[%clk 0:02:56]} 7. Be3 {[%clk 0:03:00]}  Bf5 {[%clk 0:02:56]} 8. Nc3 {[%clk 0:03:00]}  e6 {[%clk 0:02:57]} 9. Nf3 {[%clk 0:03:00]}  Bb4 {[%clk 0:02:55]} 10. Be2 {[%clk 0:02:31]}  Na5 {[%clk 0:02:54]} 11. c5 {[%clk 0:01:50]}  Nd5 {[%clk 0:02:53]} 12. Bd2 {[%clk 0:01:16]}  Bxc3 {[%clk 0:02:50]} 13. bxc3 {[%clk 0:01:09]}  b6 {[%clk 0:02:47]} 14. O-O {[%clk 0:00:45]}  O-O {[%clk 0:02:47]} 15. Qa4 {[%clk 0:00:33]}  Qe8 {[%clk 0:02:39]} 16. Bb5 {[%clk 0:00:16]}  c6 {[%clk 0:02:39]} 17. Be2 {[%clk 0:00:15]}  Nb7 {[%clk 0:02:38]} 18. c4 {[%clk 0:00:08]}  Ne7 {[%clk 0:02:37]} 19. cxb6 {[%clk 0:00:07]}  axb6 {[%clk 0:02:38]} 20. Qb3 {[%clk 0:00:08]}  c5 {[%clk 0:02:35]} 21. Qxb6 {[%clk 0:00:07]}  Rb8 {[%clk 0:02:35]} 22. Qb3 {[%clk 0:00:04]}  cxd4 {[%clk 0:02:35]} 23. Nxd4 {[%clk 0:00:05]}  Nc5 {[%clk 0:02:35]} 24. Qa3 {[%clk 0:00:05]}  Ne4 {[%clk 0:02:33]} 25. Bb4 {[%clk 0:00:05]}  Ra8 {[%clk 0:02:34]} 26. Qe3 {[%clk 0:00:04]}  Bg6 {[%clk 0:02:17]} 27. a3 {[%clk 0:00:03]}  f5 {[%clk 0:02:12]} 28. exf6 {[%clk 0:00:04]}  Rxf6 {[%clk 0:02:10]} 29. Rxf6 {[%clk 0:00:05]}  gxf6 {[%clk 0:02:11]} 30. Nxe6 {[%clk 0:00:03]}  Nc6 {[%clk 0:02:11]} 31. Nc7 {[%clk 0:00:03]}  Qb8 {[%clk 0:02:05]} 32. Nxa8 {[%clk 0:00:04]}  Qxa8 {[%clk 0:02:06]} 33. Bf3 {[%clk 0:00:03]}  Nxb4 {[%clk 0:02:06]} 34. Re1 {[%clk 0:00:01]}  Nc2 {[%clk 0:02:06]} 35. Bxe4 {[%clk 0:00:01]}  Bxe4 {[%clk 0:01:59]} 36. Qxe4 {[%clk 0:00:02]}  Qa7+ {[%clk 0:02:00]} 37. Kf1 {[%clk 0:00:03]}  Nxe1 {[%clk 0:02:00]} 38. Qxe1 {[%clk 0:00:02]}  Qxa3 {[%clk 0:02:00]} 39. Qg3+ {[%clk 0:00:03]}  Qxg3 {[%clk 0:01:59]} 40. hxg3 {[%clk 0:00:04]}  Kf7 {[%clk 0:02:00]} 41. Kf2 {[%clk 0:00:04]}  Ke6 {[%clk 0:02:00]} 42. Ke3 {[%clk 0:00:05]}  Ke5 {[%clk 0:02:01]} 43. g4 {[%clk 0:00:05]}  f5 {[%clk 0:01:55]} 44. gxf5 {[%clk 0:00:05]}  Kxf5 {[%clk 0:01:56]} 45. Kd4 {[%clk 0:00:05]}  Ke6 {[%clk 0:01:55]} 46. Kc5 {[%clk 0:00:06]}  h5 {[%clk 0:01:54]} 47. Kb6 {[%clk 0:00:06]}  Kd7 {[%clk 0:01:55]} 48. Kb7 {[%clk 0:00:05]}  Kd6 {[%clk 0:01:55]} 49. Kb6 {[%clk 0:00:06]}  Kd7 {[%clk 0:01:56]} 50. c5 {[%clk 0:00:06]}  Kc8 {[%clk 0:01:55]} 51. c6 {[%clk 0:00:06]}  h4 {[%clk 0:01:56]} 52. Kb5 {[%clk 0:00:05]}  Kc7 {[%clk 0:01:56]} 53. Kc5 {[%clk 0:00:05]}  Kc8 {[%clk 0:01:56]} 54. Kd6 {[%clk 0:00:06]}  Kd8 {[%clk 0:01:57]} 55. Ke5 {[%clk 0:00:04]}  Kc7 {[%clk 0:01:57]} 56. Kf5 {[%clk 0:00:04]}  Kxc6 {[%clk 0:01:58]} 57. Kg4 {[%clk 0:00:05]}  Kd6 {[%clk 0:01:59]} 58. Kxh4 {[%clk 0:00:06]}  Ke6 {[%clk 0:02:00]} 59. Kg5 {[%clk 0:00:06]}  Kf7 {[%clk 0:02:01]} 60. g3 {[%clk 0:00:06]}  Kg7 {[%clk 0:02:01]} 61. g4 {[%clk 0:00:07]}  Kh7 {[%clk 0:02:02]} 62. Kf6 {[%clk 0:00:07]}  Kg8 {[%clk 0:02:02]} 63. Kg6 {[%clk 0:00:08]}  Kh8 {[%clk 0:02:02]} 64. g5 {[%clk 0:00:08]}  Kg8 {[%clk 0:02:03]} 65. Kh6 {[%clk 0:00:07]}  Kh8 {[%clk 0:02:00]} 66. g6 {[%clk 0:00:07]}  Kg8 {[%clk 0:02:01]} 67. g7 {[%clk 0:00:08]} 1-0


[Site "https://www.chess.com"]

[Event "Titled Tuesday Blitz February 28 Late 2023"]
[White "Fiorito, Francisco"]
[Black "Holt, Conrad"]
[WhiteFideId "180165"]
[BlackFideId "2034387"]
[WhiteElo "2341"]
[BlackElo "2592"]
[Result "0-1"]
[Round "10"]
[TimeControl "180+2"]
[Date "2023.02.28"]
[WhiteClock "0:00:10"]
[BlackClock "0:00:08"]

1. d4 {[%clk 0:03:00]}  d5 {[%clk 0:02:59]} 2. Nc3 {[%clk 0:03:01]}  Nf6 {[%clk 0:02:58]} 3. Bf4 {[%clk 0:03:01]}  c6 {[%clk 0:02:52]} 4. e3 {[%clk 0:03:01]}  Bf5 {[%clk 0:02:51]} 5. f3 {[%clk 0:03:01]}  Qb6 {[%clk 0:02:47]} 6. Na4 {[%clk 0:02:56]}  Qa5+ {[%clk 0:02:44]} 7. Nc3 {[%clk 0:02:54]}  e6 {[%clk 0:02:39]} 8. g4 {[%clk 0:02:53]}  Ba3 {[%clk 0:02:21]} 9. bxa3 {[%clk 0:02:40]}  Qxc3+ {[%clk 0:02:19]} 10. Kf2 {[%clk 0:02:39]}  Qxc2+ {[%clk 0:02:08]} 11. Qxc2 {[%clk 0:02:39]}  Bxc2 {[%clk 0:02:07]} 12. h4 {[%clk 0:02:34]}  Nbd7 {[%clk 0:02:03]} 13. Rc1 {[%clk 0:02:33]}  Ba4 {[%clk 0:02:02]} 14. Rb1 {[%clk 0:02:33]}  Nb6 {[%clk 0:01:55]} 15. Bd3 {[%clk 0:02:20]}  Kd7 {[%clk 0:01:45]} 16. Ne2 {[%clk 0:02:19]}  Bb5 {[%clk 0:01:43]} 17. Bxb5 {[%clk 0:02:12]}  cxb5 {[%clk 0:01:43]} 18. Rxb5 {[%clk 0:02:13]}  Rhc8 {[%clk 0:01:42]} 19. a4 {[%clk 0:02:11]}  Rc2 {[%clk 0:01:27]} 20. a5 {[%clk 0:02:11]}  Kc6 {[%clk 0:01:22]} 21. Rhb1 {[%clk 0:01:46]}  Na4 {[%clk 0:01:21]} 22. Rxb7 {[%clk 0:01:45]}  Rc8 {[%clk 0:01:17]} 23. R7b3 {[%clk 0:01:17]}  h5 {[%clk 0:01:10]} 24. g5 {[%clk 0:01:16]}  Ne8 {[%clk 0:01:09]} 25. Kf1 {[%clk 0:01:13]}  Nd6 {[%clk 0:01:04]} 26. Bxd6 {[%clk 0:00:47]}  Kxd6 {[%clk 0:01:04]} 27. Rb7 {[%clk 0:00:48]}  a6 {[%clk 0:00:35]} 28. Ra7 {[%clk 0:00:20]}  Rxa2 {[%clk 0:00:18]} 29. Rxa6+ {[%clk 0:00:20]}  Rc6 {[%clk 0:00:17]} 30. Rxc6+ {[%clk 0:00:18]}  Kxc6 {[%clk 0:00:17]} 31. Rb4 {[%clk 0:00:15]}  Nb2 {[%clk 0:00:16]} 32. Rb6+ {[%clk 0:00:15]}  Kc7 {[%clk 0:00:16]} 33. Rb5 {[%clk 0:00:15]}  Nc4 {[%clk 0:00:14]} 34. Rc5+ {[%clk 0:00:15]}  Kd6 {[%clk 0:00:14]} 35. Nc3 {[%clk 0:00:12]}  Nxe3+ {[%clk 0:00:12]} 36. Kg1 {[%clk 0:00:11]}  Ra1+ {[%clk 0:00:11]} 37. Kf2 {[%clk 0:00:11]}  Nd1+ {[%clk 0:00:11]} 38. Nxd1 {[%clk 0:00:11]}  Rxd1 {[%clk 0:00:12]} 39. Rb5 {[%clk 0:00:12]}  Rxd4 {[%clk 0:00:11]} 40. Rb6+ {[%clk 0:00:12]}  Ke5 {[%clk 0:00:11]} 41. a6 {[%clk 0:00:13]}  Ra4 {[%clk 0:00:11]} 42. Kg3 {[%clk 0:00:13]}  f5 {[%clk 0:00:11]} 43. Rb7 {[%clk 0:00:12]}  f4+ {[%clk 0:00:11]} 44. Kh3 {[%clk 0:00:12]}  Ra3 {[%clk 0:00:11]} 45. Rxg7 {[%clk 0:00:12]}  Rxf3+ {[%clk 0:00:11]} 46. Kg2 {[%clk 0:00:12]}  Ra3 {[%clk 0:00:12]} 47. a7 {[%clk 0:00:13]}  Ke4 {[%clk 0:00:12]} 48. Re7 {[%clk 0:00:13]}  Ra2+ {[%clk 0:00:12]} 49. Kf1 {[%clk 0:00:12]}  Kf5 {[%clk 0:00:13]} 50. Rf7+ {[%clk 0:00:07]}  Kg4 {[%clk 0:00:13]} 51. g6 {[%clk 0:00:07]}  Kf3 {[%clk 0:00:12]} 52. Ke1 {[%clk 0:00:07]}  Ke3 {[%clk 0:00:12]} 53. Kd1 {[%clk 0:00:07]}  d4 {[%clk 0:00:08]} 54. g7 {[%clk 0:00:08]}  d3 {[%clk 0:00:08]} 55. Kc1 {[%clk 0:00:08]}  d2+ {[%clk 0:00:08]} 56. Kb1 {[%clk 0:00:09]}  d1=Q+ {[%clk 0:00:08]} 57. Kxa2 {[%clk 0:00:10]}  Qc2+ {[%clk 0:00:08]} 58. Ka3 {[%clk 0:00:10]}  Qc8 {[%clk 0:00:08]} 59. Rf8 {[%clk 0:00:09]}  Qc3+ {[%clk 0:00:08]} 60. Ka2 {[%clk 0:00:08]}  Qc2+ {[%clk 0:00:07]} 61. Ka3 {[%clk 0:00:09]}  Qc3+ {[%clk 0:00:07]} 62. Ka2 {[%clk 0:00:09]}  Qa5+ {[%clk 0:00:07]} 63. Kb2 {[%clk 0:00:09]}  Qb4+ {[%clk 0:00:07]} 64. Ka2 {[%clk 0:00:09]}  Qc4+ {[%clk 0:00:08]} 65. Ka3 {[%clk 0:00:09]}  Qc5+ {[%clk 0:00:08]} 66. Ka2 {[%clk 0:00:10]}  Qxa7+ {[%clk 0:00:08]} 0-1


[Site "https://www.chess.com"]

[Event "Titled Tuesday Blitz February 28 Late 2023"]
[White "Averjanov, Alexey"]
[Black "Real_OceanStorm"]
[WhiteFideId "14109867"]
[WhiteElo "2678"]
[BlackElo "2779"]
[Result "1-0"]
[Round "10"]
[TimeControl "180+2"]
[Date "2023.02.28"]
[WhiteClock "0:01:21"]
[BlackClock "0:00:12"]

1. d4 {[%clk 0:03:00]}  d5 {[%clk 0:02:59]} 2. c4 {[%clk 0:03:01]}  Nf6 {[%clk 0:02:59]} 3. cxd5 {[%clk 0:03:00]}  c6 {[%clk 0:02:59]} 4. dxc6 {[%clk 0:02:57]}  Nxc6 {[%clk 0:03:00]} 5. Nf3 {[%clk 0:02:56]}  e5 {[%clk 0:03:00]} 6. e3 {[%clk 0:02:54]}  Bg4 {[%clk 0:02:59]} 7. Be2 {[%clk 0:02:52]}  exd4 {[%clk 0:03:00]} 8. Nxd4 {[%clk 0:02:49]}  Bxe2 {[%clk 0:02:59]} 9. Qxe2 {[%clk 0:02:48]}  Bb4+ {[%clk 0:02:59]} 10. Bd2 {[%clk 0:02:46]}  Nxd4 {[%clk 0:02:56]} 11. exd4+ {[%clk 0:02:46]}  Be7 {[%clk 0:02:56]} 12. O-O {[%clk 0:02:37]}  O-O {[%clk 0:02:56]} 13. Be3 {[%clk 0:02:31]}  Re8 {[%clk 0:02:54]} 14. Nc3 {[%clk 0:02:30]}  Rc8 {[%clk 0:02:54]} 15. Rac1 {[%clk 0:02:29]}  a6 {[%clk 0:02:54]} 16. Qf3 {[%clk 0:02:29]}  b5 {[%clk 0:02:55]} 17. Ne4 {[%clk 0:02:24]}  Nxe4 {[%clk 0:02:50]} 18. Qxe4 {[%clk 0:02:25]}  Rxc1 {[%clk 0:02:47]} 19. Rxc1 {[%clk 0:02:24]}  Ba3 {[%clk 0:02:47]} 20. Qc2 {[%clk 0:02:16]}  Bf8 {[%clk 0:02:46]} 21. Qc6 {[%clk 0:02:13]}  Re6 {[%clk 0:02:44]} 22. Qb7 {[%clk 0:02:12]}  Qf6 {[%clk 0:02:44]} 23. Rc8 {[%clk 0:01:55]}  Qxd4 {[%clk 0:02:31]} 24. Rxf8+ {[%clk 0:01:49]}  Kxf8 {[%clk 0:02:28]} 25. Qc8+ {[%clk 0:01:49]}  Ke7 {[%clk 0:02:28]} 26. Qxe6+ {[%clk 0:01:49]}  Kxe6 {[%clk 0:00:15]} 27. Bxd4 {[%clk 0:01:46]}  g5 {[%clk 0:00:14]} 28. Bc3 {[%clk 0:01:42]}  h5 {[%clk 0:00:14]} 29. Kf1 {[%clk 0:01:28]}  g4 {[%clk 0:00:14]} 30. Ke2 {[%clk 0:01:28]}  Kd5 {[%clk 0:00:11]} 31. Kd3 {[%clk 0:01:27]}  h4 {[%clk 0:00:11]} 32. g3 {[%clk 0:01:26]}  h3 {[%clk 0:00:07]} 33. b3 {[%clk 0:01:25]}  f5 {[%clk 0:00:07]} 34. Bd2 {[%clk 0:01:25]}  Kd6 {[%clk 0:00:07]} 35. Kd4 {[%clk 0:01:25]}  Ke6 {[%clk 0:00:07]} 36. Bf4 {[%clk 0:01:25]}  Kf6 {[%clk 0:00:07]} 37. Kc5 {[%clk 0:01:25]}  b4 {[%clk 0:00:07]} 38. Kxb4 {[%clk 0:01:25]}  Ke6 {[%clk 0:00:07]} 39. Kc5 {[%clk 0:01:26]}  a5 {[%clk 0:00:07]} 40. Kb5 {[%clk 0:01:25]}  Kd5 {[%clk 0:00:07]} 41. Kxa5 {[%clk 0:01:26]}  Ke4 {[%clk 0:00:08]} 42. b4 {[%clk 0:01:26]}  Kf3 {[%clk 0:00:09]} 43. b5 {[%clk 0:01:27]}  Kxf2 {[%clk 0:00:09]} 44. b6 {[%clk 0:01:27]}  Kg2 {[%clk 0:00:10]} 45. b7 {[%clk 0:01:27]}  Kxh2 {[%clk 0:00:11]} 46. b8=Q {[%clk 0:01:28]}  Kg2 {[%clk 0:00:11]} 47. Qb2+ {[%clk 0:01:28]}  Kf3 {[%clk 0:00:12]} 48. Qc3+ {[%clk 0:01:27]}  Kg2 {[%clk 0:00:12]} 49. Qc2+ {[%clk 0:01:26]}  Kf3 {[%clk 0:00:12]} 50. Qh2 {[%clk 0:01:25]}  Ke4 {[%clk 0:00:13]} 51. a4 {[%clk 0:01:25]}  Kd5 {[%clk 0:00:13]} 52. Kb5 {[%clk 0:01:25]}  Ke6 {[%clk 0:00:13]} 53. Qe2+ {[%clk 0:01:24]}  Kf7 {[%clk 0:00:14]} 54. a5 {[%clk 0:01:24]}  Kf8 {[%clk 0:00:14]} 55. a6 {[%clk 0:01:24]}  h2 {[%clk 0:00:14]} 56. Qxh2 {[%clk 0:01:23]}  Kg7 {[%clk 0:00:14]} 57. a7 {[%clk 0:01:23]}  Kg6 {[%clk 0:00:13]} 58. a8=Q {[%clk 0:01:22]}  Kf7 {[%clk 0:00:14]} 59. Qb7+ {[%clk 0:01:21]}  Kg8 {[%clk 0:00:13]} 60. Qhh7+ {[%clk 0:01:21]}  Kf8 {[%clk 0:00:12]} 61. Qhf7# {[%clk 0:01:21]} 1-0


[Site "https://www.chess.com"]